Cogmind - Beta 10.2 @@@ ROGUE MODE // 2021.08.25 @ 11:52:51 Player: hc Result: Destroyed by G-47 Trooper with Particle Gun Performance ------------- Evolutions (2) 1000 Regions Visited (4) 800 Robots Destroyed (22) 110 Value Destroyed (737) 737 Prototype IDs (2) 40 Alien Tech Used (0) 0 Bonus (0) 0 TOTAL SCORE: 2687 Bonus ------- None Cogmind --------- Core Integrity 0/550 Matter 288/300 Energy 47/100 System Corruption 0% Temperature Cool (431) Movement Core (550) Ox10 Location -8/Materials Parts ------- > --- POWER (3) -------- (None) > --- PROPULSION (3) --- (None) > --- UTILITY (3) ------ High-capacity Storage Unit > --- WEAPON (2) ------- (None) > --- INVENTORY (12) --- High-capacity Matter Pod (200) High-capacity Matter Pod (111) Electrolaser Advanced Beam Cannon Improved Light Cannon Assault Cannon Peak State ------------ > --- POWER ------------ Ion Engine Light Ion Engine Improved Ion Engine > --- PROPULSION ------- Wheel Wheel Wheel > --- UTILITY ---------- High-capacity Storage Unit Structural Scanner Integration Mediator > --- WEAPON ----------- Spread Laser Spread Laser > --- INVENTORY -------- High-capacity Matter Pod High-capacity Matter Pod Spread Laser Spread Laser Electrolaser Advanced Beam Cannon Improved Light Cannon Assault Cannon Rocket Launcher Rocket Launcher [Rating: 17] Favorites ----------- Power Ion Engine Engine Ion Engine Propulsion Light Treads Treads Light Treads Wheel Wheel Utility High-capacity Storage Unit Device Shield Generator Storage High-capacity Storage Unit Weapon Light Assault Rifle Energy Gun Spread Laser Energy Cannon Advanced Beam Cannon Ballistic Gun Light Assault Rifle Launcher Rocket Launcher Build | -11 -10 -10 -9 -8 ------- Run | Scr Mat Min Mat Mat Slots Evolved 4 | . . . 2 2 Power 2 | . . . 1 1 Propulsion 1 | . . . 1 . Utility 1 | . . . . 1 Weapon . | . . . . . Parts Attached 33 | 7 7 . 13 6 Power 6 | 2 1 . 2 1 Engine 6 | 2 1 . 2 1 Core . | . . . . . Reactor . | . . . . . Propulsion 6 | 2 . . 4 . Treads 3 | 2 . . 1 . Leg . | . . . . . Wheel 3 | . . . 3 . Hover . | . . . . . Flight . | . . . . . Utility 5 | 1 2 . 1 1 Device 3 | . 1 . 1 1 Storage 2 | 1 1 . . . Processor . | . . . . . Hackware . | . . . . . Protection . | . . . . . Artifact . | . . . . . Weapon 16 | 2 4 . 6 4 Energy Gun 5 | . . . 3 2 Energy Cannon 5 | . 2 . 3 . Ballistic Gun 4 | 2 2 . . . Ballistic Cannon . | . . . . . Launcher 2 | . . . . 2 Special Weapon . | . . . . . Impact Weapon . | . . . . . Slashing Weapon . | . . . . . Piercing Weapon . | . . . . . Special Melee Weapon . | . . . . . Unidentified Prototypes 1 | . 1 . . . Parts Lost 21 | . . . 7 14 Power 3 | . . . . 3 Propulsion 5 | . . . 2 3 Utility 3 | . . . 1 2 Weapon 10 | . . . 4 6 Highest Loss Streak 14 | . . . 4 14 Average Slot Usage (%) 86 | . 99 100 78 87 Engine 19 | . 14 14 22 18 Treads 13 | . 28 28 12 . Wheel 7 | . . . 1 25 Device 12 | . 13 14 8 17 Storage 11 | . 14 14 11 9 Energy Gun 5 | . . . 3 16 Energy Cannon 6 | . 4 . 12 . Ballistic Gun 9 | . 23 28 6 . Naked Turns . | . . . . . Heaviest Build 56 | 9 41 41 52 56 Greatest Support 60 | 40 40 40 60 30 Greatest Overweight (x) 16 | . 1 1 16 11 Average Overweight (x) 1 | . . 1 2 1 Largest Inventory Capacity 12 | 6 12 12 12 12 Average Capacity 10 | 4 7 12 12 12 Most Carried 10 | 2 7 7 9 10 Average Carried 6 | 1 4 7 5 8 Final Capacity 12 | 6 12 12 12 12 Final Carried 9 | 2 7 7 9 6 Class Distribution -------------------- 100% | Mutant Dominant Class ---------------- Mutant | -10/Materials Mutant | -10/Mines Mutant | -9/Materials Mutant | -8/Materials Resources | -11 -10 -10 -9 -8 ----------- Run | Scr Mat Min Mat Mat Matter Collected 848 | 244 101 68 382 53 Remotely . | . . . . . Salvage Created 775 | . 139 . 509 127 Parts 45 | . 5 . 29 11 Haulers Intercepted . | . . . . . Recyclers Shooed . | . . . . . Parts Field Recycled . | . . . . . Retrieved Matter . | . . . . . Parts Self-Destructed . | . . . . . Prevented . | . . . . . Kills | -11 -10 -10 -9 -8 ------- Run | Scr Mat Min Mat Mat Combat Hostiles Destroyed 20 | . 3 . 10 7 Guns 10 | . 1 . 3 6 Cannons 9 | . 2 . 7 . AOE 1 | . . . . 1 Classes Destroyed 5 | . 1 . 3 1 Watcher 2 | . . . 2 . Swarmer 4 | . . . . 4 Grunt 12 | . 3 . 6 3 Duelist 1 | . . . 1 . Sentry 3 | . . . 3 . Best Kill Streak 4 | . 1 . 3 4 Combat Bots Only 4 | . 1 . 3 4 Max Kills in Single Turn 2 | . 1 . 1 2 Gunslinging . | . . . . . Exploded 1 | . . . . 1 Melee . | . . . . . Uniques/NPCs Destroyed . | . . . . . Combat | -11 -10 -10 -9 -8 -------- Run | Scr Mat Min Mat Mat Damage Taken 2720 | . 274 168 785 1493 Core 807 | . 23 17 204 563 Absorbed by Shields 321 | . 69 63 189 . Core Remaining (%) 77 | 100 . 84 49 . Volleys Fired 74 | . 16 1 40 17 Largest 2 | . 2 2 2 2 Hottest 136 | . 136 40 136 130 Shots Fired 135 | . 32 2 73 28 Gun 85 | . 15 2 42 26 Cannon 48 | . 17 . 31 . Launcher 2 | . . . . 2 Special . | . . . . . Kinetic 45 | . 15 2 28 . Thermal 88 | . 17 . 45 26 Explosive 2 | . . . . 2 Electromagnetic . | . . . . . Robot Hit Streak 15 | . 11 3 15 6 Robot Miss Streak 13 | . 2 1 3 13 Penetration Max . | . . . . . Secondary Targets . | . . . . . Shots Hit Robots 91 | . 22 1 51 17 Core Hits 55 | . 7 . 19 29 Critical Hits 8 | . 2 . 6 . Critical Kills 5 | . 1 . 4 . Critical Parts Destroyed 3 | . 1 . 2 . Melee Attacks . | . . . . . Impact . | . . . . . Slashing . | . . . . . Piercing . | . . . . . Sneak Attacks . | . . . . . Combat Hostiles . | . . . . . Follow-up Attacks . | . . . . . Damage Inflicted 1533 | . 293 9 687 544 Guns 508 | . 66 9 277 156 Cannons 637 | . 227 . 410 . Explosions 370 | . . . . 370 Melee . | . . . . . Ramming 18 | . . . . 18 Kinetic 217 | . 66 9 142 . Thermal 928 | . 227 . 545 156 Explosive 370 | . . . . 370 Electromagnetic . | . . . . . Impact . | . . . . . Slashing . | . . . . . Piercing . | . . . . . Highest Corruption . | . . . . . Average Corruption . | . . . . . Corruption Purged . | . . . . . Overload Shots . | . . . . . Overflow Damage . | . . . . . Projectiles . | . . . . . Explosions . | . . . . . Melee . | . . . . . Knockbacks . | . . . . . Impact . | . . . . . Kinetic . | . . . . . Secondary . | . . . . . Self-Inflicted Damage 95 | . . . . 95 Shots 2 | . . . . 2 Rammed 1 | . . . . 1 Targets Rammed 1 | . . . . 1 Kicked . | . . . . . Crushed . | . . . . . Highest Temperature 548 | . 322 . 548 413 Average Temperature 165 | . 171 . 155 181 Received Heat Transfer 1044 | . 147 . 186 711 Effects 6 | . . . 6 . Shutdowns 2 | . . . 2 . Energy Bleed 1 | . . . 1 . Interference 1 | . . . 1 . Matter Decay 1 | . . . 1 . Short Circuit 1 | . . . 1 . Siege Activations . | . . . . . Robots Corrupted . | . . . . . Combat Hostiles . | . . . . . Parts Fried . | . . . . . Impact Corruptions . | . . . . . Robots Melted . | . . . . . Combat Hostiles . | . . . . . Parts Melted 3 | . 2 . 1 . Heat Transferred 1636 | . 407 . 1029 200 Parts Sabotaged . | . . . . . Parts Stolen . | . . . . . Parts Stripped . | . . . . . Power Chain Reactions . | . . . . . Missiles Intercepted . | . . . . . Alert | -11 -10 -10 -9 -8 ------- Run | Scr Mat Min Mat Mat Peak Influence 165 | . 95 36 165 107 Initial 36 | . . 36 13 2 Average 52 | . 61 36 73 20 Maximum Alert Level . | . . . . . Low Security (%) 100 | 100 100 100 100 100 Level 1 . | . . . . . Level 2 . | . . . . . Level 3 . | . . . . . Level 4 . | . . . . . Level 5 . | . . . . . High Security . | . . . . . Max Security . | . . . . . Squads Dispatched 6 | . 1 . 1 4 Investigation 3 | . 1 . . 2 Extermination . | . . . . . Reinforcement 3 | . . . 1 2 Assault . | . . . . . Garrison . | . . . . . Intercept . | . . . . . Construction Impeded . | . . . . . Haulers Reinforced . | . . . . . Stealth | -11 -10 -10 -9 -8 --------- Run | Scr Mat Min Mat Mat Distress Signals . | . . . . . Communications Jammed . | . . . . . Distress Signals . | . . . . . Times Spotted 57 | . 3 18 17 19 Peak Tracking Total 20 | . 2 20 5 14 Tactical Retreats 3 | . . 1 2 . Traps | -11 -10 -10 -9 -8 ------- Run | Scr Mat Min Mat Mat Traps Triggered 4 | . 1 . . 3 Indirectly . | . . . . . Trap Hack Attempts . | . . . . . Triggered . | . . . . . Disarmed . | . . . . . Reprogrammed . | . . . . . Reused . | . . . . . Traps Extracted . | . . . . . Installed . | . . . . . Triggered . | . . . . . Machines | -11 -10 -10 -9 -8 ---------- Run | Scr Mat Min Mat Mat Machines Disabled 1 | . . . 1 . Max in Single Turn 1 | . . . 1 . Machines Sabotaged . | . . . . . Garrisons Compromised . | . . . . . Overloaded Fab Kills . | . . . . . Fab Network Shutdowns . | . . . . . Hacking | -11 -10 -10 -9 -8 --------- Run | Scr Mat Min Mat Mat Machines Accessed 5 | . 1 . 3 1 Terminals 4 | . 1 . 2 1 Fabricators . | . . . . . Repair Stations . | . . . . . Recycling Units . | . . . . . Scanalyzers 1 | . . . 1 . Garrison Access . | . . . . . Total Hacks 10 | . 1 . 8 1 Successful 8 | . 1 . 6 1 Failed 2 | . . . 2 . Catastrophic . | . . . . . Database Lockouts . | . . . . . Manual . | . . . . . Terminals 4 | . 1 . 2 1 Fabricators . | . . . . . Repair Stations . | . . . . . Recycling Units . | . . . . . Scanalyzers 6 | . . . 6 . Garrison Access . | . . . . . Terminal Hacks 3 | . 1 . 1 1 Record 1 | . . . . 1 Prototype ID Bank 1 | . . . 1 . Alert Level 1 | . 1 . . . Fabricator Hacks . | . . . . . Repair Station Hacks . | . . . . . Recycling Unit Hacks . | . . . . . Scanalyzer 5 | . . . 5 . Insert Component 2 | . . . 2 . Analyze 3 | . . . 3 . Garrison Access Hacks . | . . . . . Unauthorized Hacks . | . . . . . Terminals . | . . . . . Fabricators . | . . . . . Repair Stations . | . . . . . Recycling Units . | . . . . . Scanalyzers . | . . . . . Garrison Access . | . . . . . Data Cores Recovered . | . . . . . Used . | . . . . . Hacking Detections 3 | . 1 . 1 1 Full Trace Events . | . . . . . Feedback Events . | . . . . . Feedback Blocked . | . . . . . Robot Schematics Acquired . | . . . . . Robots Built . | . . . . . Matter . | . . . . . Time . | . . . . . Total Robot Build Rating . | . . . . . Part Schematics Acquired 2 | . . . 2 . Parts Built . | . . . . . Matter . | . . . . . Time . | . . . . . Total Part Build Rating . | . . . . . Parts Repaired . | . . . . . Time . | . . . . . Parts Recycled . | . . . . . Recycled Matter . | . . . . . Retrieved Matter . | . . . . . Retrieved Components . | . . . . . Parts Scanalyzed 2 | . . . 2 . Part Schematics Acquired 2 | . . . 2 . Parts Damaged . | . . . . . Bothacking | -11 -10 -10 -9 -8 ------------ Run | Scr Mat Min Mat Mat Used RIF Installer . | . . . . . Robots Hacked . | . . . . . Non-combat . | . . . . . Combat . | . . . . . Robot Hacks Applied . | . . . . . Relay Couplers Released . | . . . . . Robots Rewired . | . . . . . Allies Hacked . | . . . . . Hacks Repelled . | . . . . . Allies | -11 -10 -10 -9 -8 -------- Run | Scr Mat Min Mat Mat Total Allies . | . . . . . Largest Group . | . . . . . Highest-Rated Group . | . . . . . Highest-Rated Ally . | . . . . . Total Orders . | . . . . . Ally Attacks . | . . . . . Total Damage . | . . . . . Kills . | . . . . . Allies Corrupted . | . . . . . Allies Melted . | . . . . . Intel | -11 -10 -10 -9 -8 ------- Run | Scr Mat Min Mat Mat Robot Analysis Total . | . . . . . Derelict Logs Recovered 1 | . . 1 . . Drone Launches . | . . . . . Drone Recoveries . | . . . . . Exploration | -11 -10 -10 -9 -8 ------------- Run | Scr Mat Min Mat Mat Turns Passed 1792 | 84 313 127 832 436 Spaces Moved 669 | 49 138 70 268 144 Core 50 | 8 . . 40 2 Treads 440 | 41 138 70 191 . Legs . | . . . . . Wheels 179 | . . . 37 142 Hover . | . . . . . Flight . | . . . . . Fastest Speed 50 | 50 160 180 90 90 Average Speed 188 | 142 166 180 259 96 Slowest Speed 850 | 160 180 180 850 600 Overloaded Moves . | . . . . . Propulsion Burnouts . | . . . . . Robots Hopped . | . . . . . Cave-ins Triggered . | . . . . . Exploration Rate (%) 20 | 5 20 22 36 18 Regions Visited 4 Branch Regions 1 Pre-discovered Areas . | . . . . . Known Exits Taken . | . . . . . Unknown Exits Taken 4 | 1 1 1 1 . Scrap Searched . | . . . . . Spaces Dug . | . . . . . Terrain Destroyed 23 | . . . . 23 Melee . | . . . . . Projectile . | . . . . . AOE 23 | . . . . 23 Terrain Rammed . | . . . . . Walls Destroyed . | . . . . . Machines Disabled . | . . . . . Actions | -11 -10 -10 -9 -8 --------- Run | Scr Mat Min Mat Mat Total 1078 | 63 192 70 337 416 Wait 263 | . 18 . . 245 Move 665 | 48 137 69 267 144 Hop . | . . . . . Pick Up 35 | 8 10 . 14 3 Fast Attach . | . . . . . Attach 26 | 6 1 . 13 6 Detach 1 | . . . 1 . Swap 7 | 1 6 . . . Drop 6 | . 4 . 2 . Fire 74 | . 16 1 40 17 Melee . | . . . . . Ram 1 | . . . . 1 Kick . | . . . . . Crush . | . . . . . Escape Stasis . | . . . . . Rewire . | . . . . . Trap . | . . . . . Miscellaneous . | . . . . . Route ------- -11/Scrapyard -10/Materials -10/Mines -9/Materials -8/Materials (discovered 1 exit: Sto) History --------- Turn | Location | Event 13 | -11/Scrapyard | Discovered new exit (range 16) 85 | -11/Scrapyard | Entered Materials 87 | -10/Materials | Discovered new exit (range 14) 312 | -10/Materials | Build established: Mutant 398 | -10/Materials | Entered Mines 426 | -10/Mines | Met a Derelict bent on vengeance 442 | -10/Mines | Discovered new exit (range 11) 504 | -10/Mines | Assembled infested the area 525 | -10/Mines | Entered Materials 525 | -9/Materials | Evolved 2 slots: Power x1, Propulsion x1 929 | -9/Materials | Core integrity fell below 50% 964 | -9/Materials | Lost 4 parts (1n1u2w) 1276 | -9/Materials | Discovered new exit (range 14) 1357 | -9/Materials | Entered another Materials area 1357 | -8/Materials | Evolved 2 slots: Power x1, Utility x1 1358 | -8/Materials | Identified exit to Storage 1785 | -8/Materials | Core integrity fell below 50% 1793 | -8/Materials | Core integrity fell below 20% 1793 | -8/Materials | Destroyed by G-47 Trooper with Particle Gun Last Messages --------------- Destabilizing: Core damaged (-11). O-16 Technician: "IFF HANDSHAKE FAILED. SECURING TERMINAL." ALERT: Hostiles spotted, dispatching reinforcements to Terminal M007. Lgt. Ion Engine destroyed. Wheel destroyed. Imp. Ion Engine destroyed. Ion Engine destroyed. Integration Mediator destroyed. Spread Laser destroyed. Material Processor disabled. Structural Scanner destroyed. G-47 Trooper destroyed. Rocket Launcher destroyed. G-47 Trooper destroyed. Spread Laser destroyed. U-05 Engineer lays Concrete. Acquired 30 matter. U-05 Engineer builds a Wall. U-05 Engineer lays Concrete. Spread Laser destroyed. Map ----- +----------------------------------------------------+ | ????????????????# # #?????????# # | | ????????????????# # #?????????# # | | ????????????????# # #?????????# # | | ????????????????# # #?????????# # | | ????????????????# # #?????????# #### | | ???????## ??????# # #?????????######???## | | ??????# ##########+### #???????????????????? | | ??????# / #???????????????????? | | ??????# #???????????????????? | | ??????# #???????????????????? | | ??????# ####### !! % +???????????????????? | | ??????????????????# ! #???????????????????? | | ??????????????????# ! #???????????????????? | | ???????????######## #???????????????????? | | ???????????# ########????????????? | | ???????????# ???????????? | | ???????????# ######??????????????? | | ???????????# #####T####u######?????????????????? | | ???????????# #???#### #?????????????????? | | ???????????# #??????# #?????????????????? | | ???????????# #?????## """ #?????????????????? | | ???????????# #????## """""a #?????????????????? | | ???????????# #????# gg" "" a#?????????????????? | | ???????????# #????# g "" ###### ##?????????? | | ???????????# #????# g gg + ??? | | ???????????# ?????# g@ gu ###### ??? | | ???????????# ?????# g gg #?????????????????? | | ???????????# ?????### !####?????????????????? | | ???????????# ????? u #????????????????????? | | ???????????+ ??? #######????????????????????? | | ???????????# ? ???????????????????????????? | | ????????????# ##### ????????????????????????????? | | ??????????????????# ?????????????????????????????? | | ??????????????????#??????????????????????????????? | | ?????????????????????????????????????????????????? | | ?????????????????????????????????????????????????? | | ?????????????????????????????????????????????????? | | ?????????????????????????????????????????????????? | | ?????????????????????????????????????????????????? | | ?????????????????????????????????????????????????? | | ?????????????????????????????????????????????????? | | ?????????????????????????????????????????????????? | | ?????????????????????????????????????????????????? | | ?????????????????????????????????????????????????? | | ?????????????????????????????????????????????????? | | ?????????????????????????????????????????????????? | | ?????????????????????????????????????????????????? | | ?????????????????????????????????????????????????? | | ?????????????????????????????????????????????????? | | | +----------------------------------------------------+ Best States ------------- Heat Dissipation 31 Energy Generation 22 Energy Capacity 440 Matter Stores 300 Matter Capacity 300 Sight Range 16 Terrain Scan Density 10 Evasion (%) 42 Recoil Reduction 3 Item Schematics ----------------- Adv. Beam Cannon | -9/Materials | Scanalyzed Hcp. Matter Pod | -9/Materials | Scanalyzed Robot Schematics ------------------ None Fabricated ------------ Nothing Alien Tech Used ----------------- None Achievements -------------- Hunted I Survived The Infestation Challenges ------------ None Game ------ Seed ImprinterIonStabilizer Manual? 0 Play Time 00:25:46 Cumulative 3.8 hours Start 2021.08.25 @ 10:31:00 End 2021.08.25 @ 11:52:51 Sessions 1 Manual Loads 0 Difficulty Rogue Special Mode None Game No. 5 Rogue 5 Adventurer 0 Explorer 0 Win Type - Total 0 Types 0/0/0/0/0/0/0/0/0 Lore% 1 Gallery% 8 Achievement% 7 Wizard Run 0 Options --------- ASCII 0 Keyboard 0 Movement Mouse Keybinds 0 Fullscreen 2 Font 18/X11 Map View 76x50 Tactical HUD 0 Map Filters NONE Filters NONE Steam 1 RUN: 98ffcd20-db49-45eb-a5db-7a4466bf63b0